[Event "21th IPCA World Individual Chp."]
[Site "followchess.com"]
[Date "2022.05.13"]
[Round "6"]
[White "Mikheev, Stanislav"]
[Black "Babanov, Aleksandr"]
[Result "1/2-1/2"]
[WhiteElo "2333"]
[BlackElo "1929"]
[ECO "A40"]
[WhiteFed "SRB"]
[BlackFed "RUS"]
[FCGameId "-1471381777"]
[WhiteFideId "4135920"]
[BlackFideId "24117412"]
[TimeControl "5400+30"]

1. d4 {[%clk 1:30:56]} g6 {[%clk 1:30:28]} 2. c4 {[%clk 1:30:46]} Bg7 
{[%clk 1:30:52]} 3. Nf3 {[%clk 1:30:31]} d6 {[%clk 1:31:06]} 4. Nc3 
{[%clk 1:29:51]} Nd7 {[%clk 1:28:11]} 5. e4 {[%clk 1:29:33]} e5 {[%clk 1:25:52]} 
6. Bg5 {[%clk 1:29:03]} Ne7 {[%clk 1:23:05]} 7. Qd2 {[%clk 1:26:27]} exd4 
{[%clk 1:11:06]} 8. Nxd4 {[%clk 1:23:56]} Nf6 {[%clk 1:08:06]} 9. Be2 
{[%clk 1:18:51]} Bd7 {[%clk 1:06:11]} 10. O-O-O {[%clk 1:16:07]} h6 
{[%clk 1:00:49]} 11. Bf4 {[%clk 1:14:50]} Ng4 {[%clk 0:59:24]} 12. Bxg4 
{[%clk 1:10:49]} Bxg4 {[%clk 0:59:44]} 13. f3 {[%clk 1:11:11]} Bd7 
{[%clk 0:59:49]} 14. Rhe1 {[%clk 1:08:26]} g5 {[%clk 0:50:46]} 15. Bg3 
{[%clk 1:08:08]} O-O {[%clk 0:49:09]} 16. h4 {[%clk 0:57:08]} Ng6 
{[%clk 0:44:11]} 17. hxg5 {[%clk 0:56:24]} Qxg5 {[%clk 0:43:18]} 18. Nde2 
{[%clk 0:56:09]} Qxd2+ {[%clk 0:42:55]} 19. Rxd2 {[%clk 0:56:36]} Be6 
{[%clk 0:42:16]} 20. Nd5 {[%clk 0:55:05]} Bxd5 {[%clk 0:39:52]} 21. Rxd5 
{[%clk 0:54:37]} Ne7 {[%clk 0:37:48]} 22. Rb5 {[%clk 0:47:34]} b6 
{[%clk 0:36:55]} 23. Bh4 {[%clk 0:46:32]} Ng6 {[%clk 0:35:54]} 24. Bf2 
{[%clk 0:46:22]} Ne5 {[%clk 0:36:00]} 25. Kc2 {[%clk 0:44:39]} Nxc4 
{[%clk 0:35:23]} 26. Bd4 {[%clk 0:44:12]} Ne5 {[%clk 0:32:57]} 27. f4 
{[%clk 0:42:13]} Nc6 {[%clk 0:31:43]} 28. Bxg7 {[%clk 0:41:44]} Kxg7 
{[%clk 0:32:05]} 29. Kc3 {[%clk 0:42:07]} Rae8 {[%clk 0:31:56]} 30. Ng3 
{[%clk 0:42:25]} Re6 {[%clk 0:28:06]} 31. Rh5 {[%clk 0:41:12]} Rh8 
{[%clk 0:24:25]} 32. Nf5+ {[%clk 0:39:20]} Kf8 {[%clk 0:24:12]} 33. g4 
{[%clk 0:38:15]} Ne7 {[%clk 0:13:39]} 34. Kd3 {[%clk 0:37:04]} Nd5 
{[%clk 0:12:32]} 35. Rf1 {[%clk 0:33:48]} Nf6 {[%clk 0:10:29]} 36. Rxh6 
{[%clk 0:33:31]} Rxh6 {[%clk 0:10:09]} 37. Nxh6 {[%clk 0:33:58]} Nxe4 
{[%clk 0:10:19]} 38. g5 {[%clk 0:33:20]} Nc5+ {[%clk 0:09:58]} 39. Kd2 
{[%clk 0:33:42]} d5 {[%clk 0:08:23]} 40. Ng4 {[%clk 0:33:10]} Ne4+ 
{[%clk 0:08:33]} 41. Kc2 {[%clk 0:32:44]} c5 {[%clk 0:08:52]} 42. Rh1 
{[%clk 0:32:52]} Kg7 {[%clk 0:06:22]} 43. Rh3 {[%clk 0:22:39]} d4 
{[%clk 0:05:25]} 44. Nh6 {[%clk 0:22:45]} c4 {[%clk 0:03:39]} 45. Nf5+ 
{[%clk 0:23:07]} Kg8 {[%clk 0:03:05]} 46. Nxd4 {[%clk 0:23:25]} Rd6 
{[%clk 0:02:39]} 47. Nf5 {[%clk 0:22:50]} Rd2+ {[%clk 0:02:38]} 48. Kc1 
{[%clk 0:23:17]} Rf2 {[%clk 0:02:17]} 49. Ne7+ {[%clk 0:21:51]} Kg7 
{[%clk 0:01:33]} 50. Nd5 {[%clk 0:22:08]} Rf1+ {[%clk 0:01:09]} 51. Kc2 
{[%clk 0:22:36]} Rf2+ {[%clk 0:01:26]} 52. Kc1 {[%clk 0:23:04]} Rf1+ 
{[%clk 0:00:57]} 53. Kc2 {[%clk 0:23:32]} Rf2+ {[%clk 0:00:47]} 54. Kc1 
{[%clk 0:24:01]} Rf1+ {[%clk 0:00:41]} 55. Kc2 {[%clk 0:24:29]} Rf2+ 
{[%clk 0:00:43]} 1/2-1/2

[Event "21th IPCA World Individual Chp."]
[Site "followchess.com"]
[Date "2022.05.13"]
[Round "6"]
[White "Valenta, Vit Vaclav"]
[Black "Zilberman, Yaacov"]
[Result "0-1"]
[WhiteElo "2014"]
[BlackElo "2315"]
[ECO "B45"]
[WhiteFed "CZE"]
[BlackFed "ISR"]
[FCGameId "1390263249"]
[WhiteFideId "307440"]
[BlackFideId "2801612"]
[TimeControl "5400+30"]

1. e4 {[%clk 1:30:53]} c5 {[%clk 1:30:41]} 2. Nc3 {[%clk 1:31:15]} e6 
{[%clk 1:30:58]} 3. Nge2 {[%clk 1:31:30]} Nc6 {[%clk 1:31:04]} 4. d4 
{[%clk 1:30:50]} cxd4 {[%clk 1:31:22]} 5. Nxd4 {[%clk 1:31:15]} d6 
{[%clk 1:30:32]} 6. g3 {[%clk 1:31:04]} Nf6 {[%clk 1:29:14]} 7. Bg2 
{[%clk 1:30:54]} Bd7 {[%clk 1:25:40]} 8. O-O {[%clk 1:28:07]} a6 
{[%clk 1:25:13]} 9. a4 {[%clk 1:26:51]} Be7 {[%clk 1:25:12]} 10. Be3 
{[%clk 1:25:23]} O-O {[%clk 1:24:28]} 11. Nxc6 {[%clk 1:21:16]} Bxc6 
{[%clk 1:24:41]} 12. Qe2 {[%clk 1:19:36]} Rc8 {[%clk 1:21:06]} 13. Rfd1 
{[%clk 1:18:42]} Qc7 {[%clk 1:20:43]} 14. Rac1 {[%clk 1:14:30]} Rfd8 
{[%clk 1:17:16]} 15. Rd2 {[%clk 1:10:48]} Qa5 {[%clk 1:13:32]} 16. Rcd1 
{[%clk 1:02:40]} h6 {[%clk 1:10:29]} 17. Rd4 {[%clk 1:00:44]} e5 
{[%clk 1:08:34]} 18. b4 {[%clk 0:57:18]} Qc7 {[%clk 1:08:48]} 19. R4d2 
{[%clk 0:43:37]} Bd7 {[%clk 1:07:08]} 20. Rd3 {[%clk 0:43:27]} Be6 
{[%clk 1:06:17]} 21. a5 {[%clk 0:41:04]} Bc4 {[%clk 0:56:09]} 22. Bb6 
{[%clk 0:40:56]} Bxd3 {[%clk 0:56:15]} 23. Rxd3 {[%clk 0:40:43]} Qc4 
{[%clk 0:54:38]} 24. Bxd8 {[%clk 0:39:01]} Rxd8 {[%clk 0:53:39]} 25. Bh3 
{[%clk 0:30:50]} Qxb4 {[%clk 0:53:04]} 26. Nd5 {[%clk 0:30:46]} Nxd5 
{[%clk 0:53:03]} 27. Rxd5 {[%clk 0:31:06]} b5 {[%clk 0:49:23]} 28. axb6 
{[%clk 0:29:43]} Qxb6 {[%clk 0:49:36]} 29. Bf1 {[%clk 0:29:39]} Ra8 
{[%clk 0:48:02]} 30. Qc4 {[%clk 0:28:20]} g6 {[%clk 0:42:38]} 31. Qb3 
{[%clk 0:26:52]} Qc7 {[%clk 0:41:31]} 32. Qc4 {[%clk 0:26:20]} Qxc4 
{[%clk 0:41:11]} 33. Bxc4 {[%clk 0:26:49]} a5 {[%clk 0:40:50]} 34. Rd3 Ra7 
{[%clk 0:40:06]} 35. Bd5 {[%clk 0:23:45]} Kg7 {[%clk 0:38:07]} 36. Ra3 
{[%clk 0:23:29]} Bd8 {[%clk 0:37:35]} 37. Ra4 {[%clk 0:23:12]} Bb6 
{[%clk 0:37:31]} 38. Kg2 {[%clk 0:21:14]} Bc5 {[%clk 0:35:48]} 39. c3 
{[%clk 0:20:33]} h5 {[%clk 0:35:02]} 40. Bc6 {[%clk 0:16:44]} Rc7 
{[%clk 0:33:31]} 41. Bb5 {[%clk 0:16:02]} Bb6 {[%clk 0:33:35]} 42. c4 
{[%clk 0:15:43]} f5 {[%clk 0:32:43]} 43. f3 {[%clk 0:15:58]} fxe4 
{[%clk 0:31:28]} 44. fxe4 {[%clk 0:16:24]} Rf7 {[%clk 0:30:34]} 45. Ra2 
{[%clk 0:16:35]} g5 {[%clk 0:29:59]} 46. Rd2 {[%clk 0:14:06]} Rf6 
{[%clk 0:28:59]} 47. Bc6 {[%clk 0:12:39]} Bc5 {[%clk 0:27:21]} 48. Rb2 
{[%clk 0:11:17]} Kh6 {[%clk 0:26:04]} 49. h3 {[%clk 0:04:09]} g4 
{[%clk 0:25:13]} 50. hxg4 {[%clk 0:02:58]} hxg4 {[%clk 0:25:31]} 51. Bd7 
{[%clk 0:03:24]} Kg5 {[%clk 0:24:57]} 52. Rb8 {[%clk 0:02:46]} Rf2+ 
{[%clk 0:24:45]} 53. Kh1 {[%clk 0:03:13]} Ra2 {[%clk 0:23:55]} 54. Ra8 
{[%clk 0:02:37]} Kf6 {[%clk 0:23:01]} 55. Bc6 {[%clk 0:01:31]} Ke7 
{[%clk 0:21:41]} 56. Re8+ {[%clk 0:01:30]} Kf7 {[%clk 0:21:42]} 57. Ra8 
{[%clk 0:01:43]} Kg7 {[%clk 0:21:23]} 58. Bd7 {[%clk 0:01:19]} Bf2 
{[%clk 0:21:22]} 59. Bc6 {[%clk 0:00:42]} Bxg3 {[%clk 0:20:58]} 60. Bd5 
{[%clk 0:01:03]} Bf2 {[%clk 0:14:47]} 61. Rg8+ {[%clk 0:00:48]} Kh7 
{[%clk 0:14:27]} 62. Rxg4 {[%clk 0:00:45]} Bc5 {[%clk 0:13:20]} 63. Rg8 
{[%clk 0:00:40]} a4 {[%clk 0:13:17]} 64. Ra8 {[%clk 0:00:51]} a3 
{[%clk 0:13:37]} 65. Be6 {[%clk 0:01:17]} Rb2 {[%clk 0:13:39]} 66. Bf5+ 
{[%clk 0:01:20]} Kg7 {[%clk 0:13:42]} 67. Rd8 {[%clk 0:01:14]} a2 
{[%clk 0:13:33]} 68. Rd7+ {[%clk 0:01:39]} Kf6 {[%clk 0:13:33]} 0-1

[Event "21th IPCA World Individual Chp."]
[Site "followchess.com"]
[Date "2022.05.13"]
[Round "6"]
[White "Srimskov, Elishar"]
[Black "Lipilin, Ilia"]
[Result "0-1"]
[WhiteElo "1992"]
[BlackElo "2198"]
[ECO "A06"]
[WhiteFed "ISR"]
[BlackFed "RUS"]
[FCGameId "-1194377446"]
[WhiteFideId "2807254"]
[BlackFideId "54113245"]
[TimeControl "5400+30"]

1. Nf3 {[%clk 1:30:44]} f5 {[%clk 1:30:51]} 2. d3 {[%clk 1:29:44]} Nc6 
{[%clk 1:31:10]} 3. e4 {[%clk 1:29:41]} e5 {[%clk 1:31:30]} 4. Nc3 
{[%clk 1:29:16]} Nf6 {[%clk 1:31:44]} 5. Bg5 {[%clk 1:28:58]} Bb4 
{[%clk 1:30:33]} 6. Be2 {[%clk 1:26:21]} O-O {[%clk 1:30:07]} 7. O-O 
{[%clk 1:26:29]} Bxc3 {[%clk 1:27:04]} 8. bxc3 {[%clk 1:26:50]} h6 
{[%clk 1:26:52]} 9. Bc1 {[%clk 1:24:54]} d6 {[%clk 1:22:25]} 10. exf5 
{[%clk 1:20:47]} Bxf5 {[%clk 1:22:51]} 11. Nh4 Be6 {[%clk 1:22:03]} 12. Ng6 
{[%clk 1:19:07]} Re8 {[%clk 1:15:46]} 13. f4 {[%clk 1:17:25]} Nd5 
{[%clk 1:08:49]} 14. Qe1 {[%clk 1:06:48]} exf4 {[%clk 0:59:00]} 15. Nxf4 
{[%clk 1:00:12]} Nxf4 {[%clk 0:58:44]} 16. Rxf4 {[%clk 1:00:28]} Qe7 
{[%clk 0:56:38]} 17. Bh5 {[%clk 0:55:39]} Bf7 {[%clk 0:53:58]} 18. Qxe7 
{[%clk 0:51:28]} Rxe7 {[%clk 0:54:15]} 19. Bf3 {[%clk 0:50:04]} Re1+ 
{[%clk 0:50:36]} 20. Kf2 {[%clk 0:50:23]} Rae8 {[%clk 0:49:29]} 21. Re4 
{[%clk 0:44:21]} R8xe4 {[%clk 0:44:50]} 22. Bxe4 {[%clk 0:44:48]} Rh1 
{[%clk 0:45:03]} 23. c4 {[%clk 0:41:03]} Nb4 {[%clk 0:42:15]} 24. Rb1 
{[%clk 0:34:47]} b6 {[%clk 0:40:51]} 25. Rxb4 {[%clk 0:34:40]} Rxc1 
{[%clk 0:41:08]} 26. Rb2 {[%clk 0:34:55]} Be8 {[%clk 0:41:01]} 27. Ke3 
{[%clk 0:34:28]} Ba4 {[%clk 0:41:11]} 28. Kd2 {[%clk 0:34:10]} Rh1 
{[%clk 0:41:21]} 29. h3 {[%clk 0:34:03]} Kf7 {[%clk 0:37:43]} 30. c3 
{[%clk 0:33:21]} Kf6 {[%clk 0:33:01]} 31. Ke3 {[%clk 0:33:14]} Re1+ 
{[%clk 0:32:09]} 32. Kd4 {[%clk 0:31:35]} Ke6 {[%clk 0:29:46]} 33. Bd5+ 
{[%clk 0:31:43]} Kd7 {[%clk 0:30:00]} 34. Ba8 {[%clk 0:30:52]} c5+ 
{[%clk 0:30:18]} 35. Kd5 {[%clk 0:31:18]} Re5# {[%clk 0:30:27]} 0-1

[Event "21th IPCA World Individual Chp."]
[Site "followchess.com"]
[Date "2022.05.13"]
[Round "6"]
[White "Aleksandrova, Aleksandra"]
[Black "Alperovich, Asher"]
[Result "0-1"]
[WhiteElo "1687"]
[BlackElo "1865"]
[ECO "A45"]
[WhiteFed "ISR"]
[BlackFed "ISR"]
[FCGameId "1529491613"]
[WhiteFideId "4144198"]
[BlackFideId "2803275"]
[TimeControl "5400+30"]

1. d4 {[%clk 1:30:59]} Nf6 {[%clk 1:30:48]} 2. Nd2 {[%clk 1:31:18]} d5 
{[%clk 1:30:35]} 3. e3 {[%clk 1:31:25]} c5 {[%clk 1:30:45]} 4. dxc5 
{[%clk 1:28:53]} g6 {[%clk 1:29:49]} 5. Nb3 {[%clk 1:28:14]} Bg7 
{[%clk 1:29:17]} 6. Nf3 {[%clk 1:26:40]} O-O {[%clk 1:27:15]} 7. Bd3 
{[%clk 1:24:44]} Na6 {[%clk 1:23:54]} 8. Qe2 {[%clk 1:19:48]} Qc7 
{[%clk 1:18:55]} 9. Bxa6 {[%clk 1:16:37]} bxa6 {[%clk 1:19:01]} 10. Bd2 
{[%clk 1:16:43]} Ne4 {[%clk 1:14:39]} 11. Ba5 {[%clk 1:16:16]} Qc6 
{[%clk 1:11:50]} 12. Nfd4 {[%clk 1:14:25]} Qa4 {[%clk 1:11:02]} 13. Bc7 
{[%clk 1:06:43]} Bd7 {[%clk 1:00:57]} 14. O-O {[%clk 0:59:24]} Rac8 
{[%clk 0:58:12]} 15. f3 {[%clk 0:57:48]} Rxc7 {[%clk 0:54:12]} 16. fxe4 
{[%clk 0:57:29]} e5 {[%clk 0:49:29]} 17. c6 {[%clk 0:54:47]} Bc8 
{[%clk 0:29:50]} 18. Nc5 {[%clk 0:30:44]} Qb4 {[%clk 0:17:47]} 19. Nd3 
{[%clk 0:28:51]} Qc4 {[%clk 0:16:15]} 20. b3 {[%clk 0:27:57]} Qc3 
{[%clk 0:15:32]} 21. exd5 {[%clk 0:27:26]} exd4 {[%clk 0:15:08]} 22. e4 
{[%clk 0:27:48]} Re8 {[%clk 0:13:47]} 23. g4 {[%clk 0:12:27]} Rce7 
{[%clk 0:10:59]} 24. Qf3 {[%clk 0:08:31]} Rxe4 {[%clk 0:09:52]} 25. Qxf7+ 
{[%clk 0:07:50]} Kh8 {[%clk 0:10:20]} 26. h3 {[%clk 0:04:35]} Qxc2 
{[%clk 0:07:45]} 27. Nf2 {[%clk 0:04:28]} R4e7 {[%clk 0:07:21]} 28. Qf3 
{[%clk 0:04:22]} Qc3 {[%clk 0:06:04]} 29. Qxc3 {[%clk 0:03:05]} dxc3 
{[%clk 0:06:32]} 30. d6 {[%clk 0:03:23]} Rd7 {[%clk 0:01:58]} 31. cxd7 
{[%clk 0:02:55]} Bxd7 {[%clk 0:02:13]} 32. Rae1 {[%clk 0:01:58]} Be5 
{[%clk 0:00:59]} 33. Ne4 {[%clk 0:00:49]} Kg7 {[%clk 0:00:49]} 34. Nc5 
{[%clk 0:00:46]} Bd4+ {[%clk 0:00:56]} 35. Kh2 {[%clk 0:00:42]} Bxc5 
{[%clk 0:01:04]} 36. Rxe8 {[%clk 0:00:39]} Bxe8 {[%clk 0:01:26]} 37. Re1 
{[%clk 0:00:34]} Bxd6+ {[%clk 0:01:27]} 38. Kg2 {[%clk 0:00:45]} Bc6+ 
{[%clk 0:01:20]} 39. Kf2 {[%clk 0:01:11]} c2 {[%clk 0:01:11]} 40. Rc1 
{[%clk 0:01:27]} Bc5+ {[%clk 0:00:52]} 41. Ke2 {[%clk 0:01:28]} Be4 
{[%clk 0:00:59]} 42. Kd2 {[%clk 0:00:40]} Ba3 {[%clk 0:00:44]} 43. Rxc2 
{[%clk 0:00:41]} Bxc2 {[%clk 0:01:05]} 44. Kxc2 {[%clk 0:01:09]} Kf6 
{[%clk 0:01:10]} 45. Kd3 {[%clk 0:01:14]} Kg5 {[%clk 0:01:20]} 0-1

[Event "21th IPCA World Individual Chp."]
[Site "followchess.com"]
[Date "2022.05.13"]
[Round "6"]
[White "Gerasimova, Svetlana"]
[Black "Cosic, Radoslav"]
[Result "0-1"]
[WhiteElo "1906"]
[BlackElo "2003"]
[ECO "B07"]
[WhiteFed "RUS"]
[BlackFed "CRO"]
[FCGameId "-1459912750"]
[WhiteFideId "4145968"]
[BlackFideId "14504367"]
[TimeControl "5400+30"]

1. e4 {[%clk 1:30:57]} d6 {[%clk 1:30:47]} 2. d4 {[%clk 1:31:17]} g6 
{[%clk 1:31:04]} 3. Nc3 {[%clk 1:31:39]} Bg7 {[%clk 1:31:32]} 4. Be3 
{[%clk 1:31:55]} a6 {[%clk 1:31:33]} 5. Qd2 {[%clk 1:31:35]} b5 {[%clk 1:31:57]} 
6. f3 {[%clk 1:24:24]} e6 {[%clk 1:31:18]} 7. h4 {[%clk 1:23:25]} h5 
{[%clk 1:31:19]} 8. O-O-O {[%clk 1:20:59]} Nd7 {[%clk 1:31:28]} 9. Nh3 
{[%clk 1:19:33]} Nb6 {[%clk 1:31:42]} 10. Ng5 {[%clk 1:16:19]} Nf6 
{[%clk 1:31:22]} 11. Qf2 {[%clk 1:12:43]} O-O {[%clk 1:28:05]} 12. g4 
{[%clk 1:12:06]} Nc4 {[%clk 1:27:42]} 13. Bxc4 {[%clk 1:10:11]} bxc4 
{[%clk 1:28:09]} 14. e5 {[%clk 1:10:08]} dxe5 {[%clk 1:28:18]} 15. dxe5 
{[%clk 1:10:16]} Nd5 {[%clk 1:28:46]} 16. gxh5 {[%clk 1:03:37]} Bxe5 
{[%clk 1:29:00]} 17. f4 {[%clk 1:03:27]} Bxc3 {[%clk 1:26:55]} 18. bxc3 
{[%clk 1:03:21]} Qf6 {[%clk 1:26:34]} 19. Ne4 {[%clk 0:56:39]} Qf5 
{[%clk 1:25:38]} 20. Ng3 {[%clk 0:55:12]} Qg4 21. Rxd5 {[%clk 0:50:12]} exd5 
{[%clk 1:26:29]} 22. Bd4 {[%clk 0:49:39]} Re8 {[%clk 1:23:48]} 23. hxg6 
{[%clk 0:49:26]} fxg6 {[%clk 1:23:35]} 24. h5 {[%clk 0:49:31]} g5 
{[%clk 1:24:03]} 25. fxg5 {[%clk 0:45:17]} Qxg5+ {[%clk 1:24:04]} 26. Kb1 
{[%clk 0:45:25]} Rb8+ {[%clk 1:24:14]} 27. Ka1 {[%clk 0:45:51]} Rf8 
{[%clk 1:22:29]} 28. Qe1 {[%clk 0:45:53]} Bg4 {[%clk 1:21:59]} 29. h6 
{[%clk 0:36:38]} Kh7 {[%clk 1:22:25]} 30. Nf1 {[%clk 0:34:30]} Rbe8 
{[%clk 1:11:21]} 31. Qb1 {[%clk 0:34:49]} Qf4 {[%clk 1:09:53]} 32. Nh2 
{[%clk 0:31:42]} Bh5 {[%clk 1:07:08]} 33. Qb7 {[%clk 0:27:30]} Qd6 
{[%clk 1:07:05]} 34. Qa7 {[%clk 0:24:08]} Rf7 {[%clk 1:06:42]} 35. Bc5 
{[%clk 0:19:31]} Qc6 {[%clk 1:07:01]} 36. Be3 {[%clk 0:19:36]} Qe6 
{[%clk 1:06:49]} 37. Re1 {[%clk 0:17:14]} Qd6 {[%clk 1:06:27]} 38. Nf1 
{[%clk 0:16:57]} c5 {[%clk 1:06:30]} 0-1

[Event "21th IPCA World Individual Chp."]
[Site "followchess.com"]
[Date "2022.05.13"]
[Round "6"]
[White "Shapiro, Benny"]
[Black "Oliel, Yehonatan"]
[Result "1-0"]
[WhiteElo "1884"]
[BlackElo "1535"]
[ECO "E16"]
[WhiteFed "ISR"]
[BlackFed "ISR"]
[FCGameId "223623673"]
[WhiteFideId "2801582"]
[BlackFideId "2834928"]
[TimeControl "5400+30"]

1. d4 {[%clk 1:30:14]} Nf6 {[%clk 1:29:50]} 2. Nf3 {[%clk 1:30:41]} e6 
{[%clk 1:29:41]} 3. c4 {[%clk 1:30:06]} b6 {[%clk 1:29:38]} 4. g3 
{[%clk 1:30:19]} Bb7 {[%clk 1:29:28]} 5. Bg2 {[%clk 1:29:54]} c5 
{[%clk 1:28:42]} 6. d5 {[%clk 1:29:55]} exd5 {[%clk 1:25:34]} 7. Nh4 
{[%clk 1:29:53]} d6 {[%clk 1:22:50]} 8. Nc3 {[%clk 1:28:53]} Nc6 
{[%clk 1:21:15]} 9. cxd5 {[%clk 1:28:24]} Ne7 {[%clk 1:20:03]} 10. Bg5 
{[%clk 1:27:29]} Ng6 {[%clk 1:18:50]} 11. Nf5 {[%clk 1:20:24]} h6 
{[%clk 1:18:28]} 12. Bxf6 {[%clk 1:19:38]} Qxf6 {[%clk 1:17:36]} 13. Qa4+ 
{[%clk 1:19:41]} Kd8 {[%clk 1:16:48]} 14. Bh3 {[%clk 1:19:07]} a6 
{[%clk 1:06:12]} 15. Nxg7 {[%clk 1:14:01]} Qe7 {[%clk 1:03:20]} 16. Nf5 
{[%clk 1:12:50]} Qc7 {[%clk 1:00:43]} 17. f4 {[%clk 1:09:30]} Ne7 
{[%clk 0:58:58]} 18. Nxd6 {[%clk 1:03:01]} Qxd6 {[%clk 0:55:40]} 19. Ne4 
{[%clk 1:02:55]} Qc7 {[%clk 0:49:52]} 20. d6 {[%clk 1:02:24]} Qc6 
{[%clk 0:45:27]} 21. dxe7+ {[%clk 1:02:25]} Bxe7 {[%clk 0:44:55]} 22. O-O-O+ 
{[%clk 1:02:19]} Kc7 {[%clk 0:39:23]} 23. Rd7+ {[%clk 1:00:52]} Kb8 
{[%clk 0:39:28]} 24. Qxc6 {[%clk 1:01:04]} Bxc6 {[%clk 0:39:34]} 25. Rxe7 
{[%clk 1:01:24]} Rd8 {[%clk 0:38:37]} 26. Rd1 {[%clk 1:01:25]} 1-0

[Event "21th IPCA World Individual Chp."]
[Site "followchess.com"]
[Date "2022.05.13"]
[Round "6"]
[White "Freiberg, Doron"]
[Black "Mekus, Manuela"]
[Result "0-1"]
[WhiteElo "1244"]
[BlackElo "1644"]
[ECO "A49"]
[WhiteFed "ISR"]
[BlackFed "GER"]
[FCGameId "-1412062102"]
[WhiteFideId "2841312"]
[BlackFideId "16202562"]
[TimeControl "5400+30"]

1. d4 {[%clk 1:30:48]} Nf6 {[%clk 1:30:33]} 2. Nf3 {[%clk 1:31:13]} g6 
{[%clk 1:30:54]} 3. g3 {[%clk 1:31:13]} Bg7 {[%clk 1:31:14]} 4. Bg2 d6 
{[%clk 1:31:29]} 5. O-O {[%clk 1:31:01]} O-O {[%clk 1:31:45]} 6. c4 
{[%clk 1:29:29]} Nbd7 {[%clk 1:31:24]} 7. Nc3 {[%clk 1:29:39]} e5 
{[%clk 1:30:46]} 8. d5 {[%clk 1:25:17]} a5 {[%clk 1:29:43]} 9. Bg5 
{[%clk 1:21:15]} h6 {[%clk 1:25:19]} 10. Bd2 {[%clk 1:17:49]} Nc5 
{[%clk 1:22:17]} 11. Qc1 {[%clk 1:14:59]} Kh7 {[%clk 1:17:23]} 12. Be3 
{[%clk 1:08:02]} Nfe4 {[%clk 1:02:47]} 13. Nd2 {[%clk 1:03:35]} Nxd2 
{[%clk 1:00:19]} 14. Qxd2 f5 {[%clk 0:59:47]} 15. Bxc5 {[%clk 0:58:01]} dxc5 
{[%clk 1:00:00]} 16. Na4 {[%clk 0:50:50]} Qd6 {[%clk 0:59:37]} 17. Nc3 
{[%clk 0:50:35]} c6 {[%clk 0:55:26]} 18. Rad1 {[%clk 0:45:58]} e4 
{[%clk 0:54:42]} 19. f3 {[%clk 0:39:09]} e3 {[%clk 0:53:13]} 20. Qc2 
{[%clk 0:36:53]} Bd4 {[%clk 0:53:10]} 21. dxc6 {[%clk 0:31:46]} bxc6 
{[%clk 0:47:29]} 22. f4 Rb8 {[%clk 0:47:08]} 23. Kh1 Be6 {[%clk 0:44:43]} 24. 
Rf3 {[%clk 0:28:36]} Qc7 {[%clk 0:37:36]} 25. b3 {[%clk 0:28:16]} Kg7 
{[%clk 0:35:05]} 26. Rb1 {[%clk 0:27:55]} Bd7 {[%clk 0:33:07]} 27. Nd1 
{[%clk 0:27:58]} Rbe8 {[%clk 0:33:14]} 28. Qc1 {[%clk 0:27:15]} g5 
{[%clk 0:33:27]} 29. fxg5 {[%clk 0:26:18]} hxg5 {[%clk 0:33:55]} 30. Nxe3 
{[%clk 0:20:20]} g4 {[%clk 0:33:57]} 31. Nxf5+ {[%clk 0:20:42]} Bxf5 
{[%clk 0:34:19]} 32. Qg5+ {[%clk 0:21:03]} Bg6 {[%clk 0:32:24]} 33. Rxf8 
{[%clk 0:18:30]} Rxf8 {[%clk 0:32:53]} 34. Be4 {[%clk 0:16:15]} Qd6 
{[%clk 0:32:33]} 35. Rd1 {[%clk 0:11:54]} Qe6 36. Bd3 {[%clk 0:03:08]} Rf2 
{[%clk 0:32:17]} 37. Rc1 {[%clk 0:01:38]} Rxe2 {[%clk 0:32:11]} 38. Rf1 
{[%clk 0:00:41]} Re1 {[%clk 0:26:42]} 39. Qxg6+ {[%clk 0:00:33]} Qxg6 
{[%clk 0:27:02]} 40. Rxe1 Qxd3 {-error} 0-1

[Event "21th IPCA World Individual Chp."]
[Site "followchess.com"]
[Date "2022.05.13"]
[Round "5"]
[White "Obodchuk, Andrei"]
[Black "Gurbanov, Andrei"]
[Result "0-1"]
[WhiteElo "2295"]
[BlackElo "2302"]
[ECO "C45"]
[WhiteFed "RUS"]
[BlackFed "ISR"]
[FCGameId "-631678049"]
[WhiteFideId "4114310"]
[BlackFideId "13503391"]
[TimeControl "5400+30"]

1. e4 {[%clk 1:30:45]} e5 {[%clk 1:30:54]} 2. Nf3 {[%clk 1:31:09]} Nc6 
{[%clk 1:31:21]} 3. Nc3 {[%clk 1:30:39]} Nf6 {[%clk 1:26:27]} 4. d4 
{[%clk 1:30:54]} exd4 {[%clk 1:26:52]} 5. Nxd4 {[%clk 1:31:18]} Bb4 
{[%clk 1:27:10]} 6. Nxc6 {[%clk 1:31:40]} bxc6 {[%clk 1:27:34]} 7. Bd3 
{[%clk 1:31:54]} d5 {[%clk 1:26:49]} 8. exd5 {[%clk 1:31:58]} cxd5 
{[%clk 1:27:11]} 9. O-O {[%clk 1:32:11]} O-O {[%clk 1:27:24]} 10. h3 
{[%clk 1:32:28]} Be6 {[%clk 1:24:05]} 11. Qf3 {[%clk 1:31:47]} Rb8 
{[%clk 1:24:01]} 12. Bf4 {[%clk 1:29:02]} Be7 {[%clk 1:21:50]} 13. b3 
{[%clk 1:29:08]} d4 {[%clk 1:17:58]} 14. Ne4 {[%clk 1:27:01]} Nd5 
{[%clk 1:18:14]} 15. Be5 {[%clk 1:25:04]} f5 {[%clk 1:11:39]} 16. Ng3 
{[%clk 1:24:51]} g6 {[%clk 1:02:15]} 17. Bc4 {[%clk 1:22:41]} Bf6 
{[%clk 0:57:41]} 18. Rae1 {[%clk 1:22:22]} Bf7 {[%clk 0:57:34]} 19. Bxd5 
{[%clk 1:11:33]} Bxd5 {[%clk 0:57:16]} 20. Qf4 {[%clk 1:11:39]} Ba8 
{[%clk 0:53:43]} 21. Bxc7 {[%clk 0:58:56]} Qd5 {[%clk 0:53:43]} 22. f3 
{[%clk 0:59:15]} Rbc8 {[%clk 0:49:34]} 23. Be5 {[%clk 0:57:26]} Rxc2 
{[%clk 0:36:48]} 24. Bxf6 {[%clk 0:57:32]} Rxf6 {[%clk 0:37:17]} 25. Re8+ 
{[%clk 0:56:06]} Rf8 {[%clk 0:34:46]} 26. Rxf8+ {[%clk 0:44:43]} Kxf8 
{[%clk 0:35:13]} 27. Re1 {[%clk 0:44:47]} Qd7 {[%clk 0:28:09]} 28. Qe5 
{[%clk 0:39:40]} Bd5 {[%clk 0:25:40]} 29. Rd1 {[%clk 0:39:31]} Qc7 
{[%clk 0:16:46]} 30. Qh8+ {[%clk 0:33:25]} Bg8 {[%clk 0:14:05]} 31. Qf6+ 
{[%clk 0:33:47]} Bf7 {[%clk 0:12:56]} 32. Rxd4 {[%clk 0:32:56]} Ke8 
{[%clk 0:12:30]} 33. Nf1 {[%clk 0:23:35]} Rxa2 {[%clk 0:12:25]} 34. Qh8+ 
{[%clk 0:23:34]} Ke7 {[%clk 0:12:53]} 35. Rd3 {[%clk 0:22:51]} Re2 
{[%clk 0:11:26]} 36. Re3+ {[%clk 0:17:28]} Rxe3 {[%clk 0:10:32]} 37. Nxe3 
{[%clk 0:17:56]} Qc5 {[%clk 0:10:49]} 38. Qxh7 {[%clk 0:17:13]} Qxe3+ 
{[%clk 0:11:07]} 39. Kh2 {[%clk 0:17:27]} Qxb3 {[%clk 0:10:13]} 40. Qh4+ 
{[%clk 0:17:51]} Ke6 {[%clk 0:10:10]} 41. Qe1+ {[%clk 0:17:53]} Kd7 
{[%clk 0:10:23]} 42. Qa1 {[%clk 0:16:51]} Qb6 {[%clk 0:10:12]} 43. f4 
{[%clk 0:17:01]} a5 {[%clk 0:09:32]} 44. Qg7 {[%clk 0:17:24]} Qe6 
{[%clk 0:09:22]} 45. Qd4+ {[%clk 0:16:14]} Qd5 {[%clk 0:09:45]} 46. Qb6 
{[%clk 0:16:10]} Ke7 {[%clk 0:10:01]} 47. h4 {[%clk 0:16:28]} Be8 
{[%clk 0:08:53]} 48. Qe3+ {[%clk 0:16:11]} Kf8 {[%clk 0:09:05]} 49. Qc3 
{[%clk 0:16:21]} a4 {[%clk 0:08:54]} 50. h5 {[%clk 0:16:27]} gxh5 
{[%clk 0:09:09]} 51. Qf6+ {[%clk 0:16:33]} Bf7 {[%clk 0:09:30]} 52. Qh8+ 
{[%clk 0:16:18]} Ke7 {[%clk 0:09:55]} 53. Qb8 {[%clk 0:16:34]} Qe4 
{[%clk 0:09:53]} 54. Kg3 {[%clk 0:16:49]} Qe1+ {[%clk 0:09:24]} 55. Kh2 
{[%clk 0:16:52]} Qe4 {[%clk 0:08:12]} 56. Kg3 {[%clk 0:17:00]} Be8 
{[%clk 0:07:08]} 57. Kh4 {[%clk 0:16:15]} Kf8 {[%clk 0:06:36]} 58. Kg5 
{[%clk 0:15:16]} Qe7+ {[%clk 0:06:18]} 59. Kxf5 {[%clk 0:15:33]} Kg7 
{[%clk 0:06:46]} 60. Qb2+ {[%clk 0:15:20]} Kh7 {[%clk 0:07:15]} 0-1